fUSD/lending_fUSD_20260625
["ID","MTS","AMOUNT","RATE_DAILY","PERIOD"]
[426399395,1782348641000,-1857.37,0.00013698,2]
[426399371,1782348641000,-500.0,0.00013698,2]
[426399374,1782348641000,-500.0,0.00013698,2]
[426399345,1782348641000,-500.0,0.00013698,2]
[426399350,1782348641000,-500.0,0.00013698,2]
[426399352,1782348641000,-500.0,0.00013698,2]
[426399349,1782348641000,-500.0,0.00013698,2]
[426399346,1782348641000,-500.0,0.00013698,2]
[426399347,1782348641000,-600.58062303,0.00013698,2]
[426399351,1782348641000,-500.0,0.00013698,2]
[426399353,1782348641000,-500.0,0.00013698,2]
[426399361,1782348641000,-500.0,0.00013698,2]
[426399354,1782348641000,-500.0,0.00013698,2]
[426399365,1782348641000,-500.0,0.00013698,2]
[426399364,1782348641000,-500.0,0.00013698,2]
[426399348,1782348641000,-500.0,0.00013698,2]
[426399355,1782348641000,-500.0,0.00013698,2]
[426399357,1782348641000,-500.0,0.00013698,2]
[426399368,1782348641000,-500.0,0.00013698,2]
[426399378,1782348641000,-500.0,0.00013698,2]
[426399370,1782348641000,-500.0,0.00013698,2]
[426399367,1782348641000,-500.0,0.00013698,2]
[426399366,1782348641000,-500.0,0.00013698,2]
[426399369,1782348641000,-500.0,0.00013698,2]
[426399362,1782348641000,-500.0,0.00013698,2]
[426399358,1782348641000,-500.0,0.00013698,2]
[426399360,1782348641000,-500.0,0.00013698,2]
[426399359,1782348641000,-156.09,0.00013698,2]
[426399356,1782348641000,-500.0,0.00013698,2]
[426399363,1782348641000,-500.0,0.00013698,2]
[426399439,1782348642000,-150.0,0.00013739,2]
[426399436,1782348642000,-150.0,0.00013727,2]
[426399447,1782348642000,-150.0,0.00013769,2]
[426399437,1782348642000,-150.0,0.00013737,2]
[426399433,1782348642000,-150.0,0.00013716,2]
[426399428,1782348642000,-29999.99,0.00013699,2]
[426399431,1782348642000,-150.0,0.00013706,2]
[426399440,1782348642000,-150.0,0.00013744,2]
[426399432,1782348642000,-150.0,0.0001371,2]
[426399434,1782348642000,-150.0,0.0001372,2]
[426399435,1782348642000,-150.0,0.00013727,2]
[426399443,1782348642000,-174.43,0.00013752,2]
[426399442,1782348642000,-150.0,0.00013752,2]
[426399445,1782348642000,-150.0,0.00013756,2]
[426399441,1782348642000,-150.0,0.00013748,2]
[426399446,1782348642000,-150.0,0.00013761,2]
[426399444,1782348642000,-1172.34,0.00013753,2]
[426399451,1782348642000,-150.0,0.00013793,2]
[426399448,1782348642000,-150.0,0.00013775,2]
[426399452,1782348642000,-150.0,0.00013795,2]
[426399450,1782348642000,-150.0,0.00013788,2]
[426399453,1782348642000,-150.0,0.00013795,2]
[426399427,1782348642000,-9999.99,0.00013699,2]
[426399449,1782348642000,-150.0,0.00013778,2]
[426399438,1782348642000,-150.0,0.00013738,2]
[426399430,1782348642000,-150.0,0.00013701,2]
[426399414,1782348642000,-1857.37,0.00013698,2]
[426399426,1782348642000,-723.55,0.00013699,2]
[426399454,1782348642000,-2721.1101676,0.00013797,2]
[426399402,1782348642000,-2327.39,0.00013698,2]
[426399403,1782348642000,-2327.39,0.00013698,2]
[426399405,1782348642000,-1857.37,0.00013698,2]
[426399404,1782348642000,-2327.39,0.00013698,2]
[426399406,1782348642000,-2327.39,0.00013698,2]
[426399409,1782348642000,-1857.37,0.00013698,2]
[426399407,1782348642000,-1857.37,0.00013698,2]
[426399408,1782348642000,-2327.39,0.00013698,2]
[426399411,1782348642000,-1857.37,0.00013698,2]
[426399410,1782348642000,-2327.39,0.00013698,2]
[426399429,1782348642000,-29767.09,0.00013699,2]
[426399412,1782348642000,-1857.37,0.00013698,2]
[426399418,1782348642000,-1857.37,0.00013698,2]
[426399415,1782348642000,-2327.39,0.00013698,2]
[426399417,1782348642000,-2327.39,0.00013698,2]
[426399422,1782348642000,-213.64,0.00013699,2]
[426399423,1782348642000,-178.04,0.00013699,2]
[426399420,1782348642000,-310.0,0.00013699,2]
[426399416,1782348642000,-1857.37,0.00013698,2]
[426399424,1782348642000,-890.2,0.00013699,2]
[426399419,1782348642000,-1857.37,0.00013698,2]
[426399421,1782348642000,-200.0,0.00013699,2]
[426399425,1782348642000,-2500.0,0.00013699,2]
[426399413,1782348642000,-2327.39,0.00013698,2]
[426399456,1782348642000,-150.0,0.00013799,2]
[426399458,1782348642000,-500.0,0.00013806,2]
[426399459,1782348642000,-500.0,0.00013806,2]
[426399490,1782348642000,-150.0,0.00013864,2]
[426399489,1782348642000,-150.0,0.00013862,2]
[426399491,1782348642000,-150.0,0.00013867,2]
[426399492,1782348642000,-150.0,0.00013879,2]
[426399495,1782348642000,-150.0,0.00013895,2]
[426399494,1782348642000,-150.0,0.00013885,2]
[426399505,1782348642000,-500.0,0.00013906,2]
[426399497,1782348642000,-150.0,0.00013896,2]
[426399496,1782348642000,-44671.50250463,0.00013896,2]
[426399498,1782348642000,-150.0,0.00013897,2]
[426399500,1782348642000,-150.0,0.00013903,2]
[426399503,1782348642000,-500.0,0.00013906,2]
[426399502,1782348642000,-500.0,0.00013906,2]
[426399501,1782348642000,-500.0,0.00013906,2]
[426399504,1782348642000,-317.76731396,0.00013906,2]
[426399506,1782348642000,-500.0,0.00013906,2]
[426399509,1782348642000,-542.12,0.00013906,2]
[426399508,1782348642000,-229.50990833,0.00013906,2]
[426399511,1782348642000,-542.12,0.00013906,2]
[426399512,1782348642000,-542.12,0.00013906,2]
[426399510,1782348642000,-542.12,0.00013906,2]
[426399507,1782348642000,-500.0,0.00013906,2]
[426399513,1782348642000,-542.12,0.00013906,2]
[426399455,1782348642000,-272.01877318,0.00013797,2]
[426399514,1782348642000,-542.12,0.00013906,2]
[426399493,1782348642000,-150.0,0.00013885,2]
[426399486,1782348642000,-2327.43536514,0.00013858,2]
[426399499,1782348642000,-150.0,0.00013902,2]
[426399484,1782348642000,-2327.39,0.00013858,2]
[426399457,1782348642000,-150.0,0.00013801,2]
[426399488,1782348642000,-150.0,0.00013862,2]
[426399460,1782348642000,-500.0,0.00013806,2]
[426399462,1782348642000,-500.0,0.00013806,2]
[426399465,1782348642000,-150.0,0.00013811,2]
[426399470,1782348642000,-150.0,0.00013827,2]
[426399461,1782348642000,-500.0,0.00013806,2]
[426399471,1782348642000,-150.0,0.00013829,2]
[426399464,1782348642000,-500.0,0.00013806,2]
[426399463,1782348642000,-500.0,0.00013806,2]
[426399468,1782348642000,-150.0,0.00013824,2]
[426399474,1782348642000,-150.0,0.00013845,2]
[426399472,1782348642000,-150.0,0.0001383,2]
[426399466,1782348642000,-150.0,0.00013812,2]
[426399476,1782348642000,-150.0,0.00013851,2]
[426399487,1782348642000,-150.0,0.00013861,2]
[426399482,1782348642000,-2327.39,0.00013858,2]
[426399480,1782348642000,-1857.37,0.00013858,2]
[426399481,1782348642000,-1857.37,0.00013858,2]
[426399483,1782348642000,-1857.37,0.00013858,2]
[426399485,1782348642000,-1857.38315319,0.00013858,2]
[426399479,1782348642000,-1857.37,0.00013858,2]
[426399478,1782348642000,-2327.39,0.00013858,2]
[426399475,1782348642000,-150.0,0.00013848,2]
[426399473,1782348642000,-150.0,0.00013832,2]
[426399477,1782348642000,-2327.39,0.00013858,2]
[426399555,1782348643000,-500.0,0.0001391,2]
[426399563,1782348643000,-150.0,0.0001393,2]
[426399556,1782348643000,-500.0,0.0001391,2]
[426399554,1782348643000,-500.0,0.0001391,2]
[426399549,1782348643000,-562.9,0.00013906,2]
[426399548,1782348643000,-562.9,0.00013906,2]
[426399551,1782348643000,-562.9,0.00013906,2]
[426399547,1782348643000,-562.9,0.00013906,2]
[426399543,1782348643000,-562.9,0.00013906,2]
[426399545,1782348643000,-562.9,0.00013906,2]
[426399562,1782348643000,-150.0,0.00013927,2]
[426399546,1782348643000,-562.9,0.00013906,2]
[426399557,1782348643000,-500.0,0.0001391,2]
[426399568,1782348643000,-150.0,0.00013953,2]
[426399560,1782348643000,-150.0,0.00013914,2]
[426399561,1782348643000,-150.0,0.00013922,2]
[426399559,1782348643000,-150.0,0.00013913,2]
[426399564,1782348643000,-150.0,0.0001393,2]
[426399565,1782348643000,-150.0,0.00013933,2]
[426399566,1782348643000,-150.0,0.0001394,2]
[426399575,1782348643000,-150.0,0.00013981,2]
[426399567,1782348643000,-150.0,0.00013947,2]
[426399569,1782348643000,-3419.53276057,0.00013954,2]
[426399578,1782348643000,-520.11,0.00013989,2]
[426399576,1782348643000,-150.0,0.00013984,2]
[426399577,1782348643000,-520.11,0.00013989,2]
[426399544,1782348643000,-562.9,0.00013906,2]
[426399558,1782348643000,-500.0,0.0001391,2]
[426399550,1782348643000,-562.9,0.00013906,2]
[426399519,1782348643000,-542.12,0.00013906,2]
[426399552,1782348643000,-562.9,0.00013906,2]
[426399571,1782348643000,-150.0,0.00013959,2]
[426399517,1782348643000,-542.12,0.00013906,2]
[426399515,1782348643000,-542.12,0.00013906,2]
[426399516,1782348643000,-542.12,0.00013906,2]
[426399518,1782348643000,-542.12,0.00013906,2]
[426399521,1782348643000,-500.0,0.00013906,2]
[426399522,1782348643000,-500.0,0.00013906,2]
[426399528,1782348643000,-500.0,0.00013906,2]
[426399520,1782348643000,-500.0,0.00013906,2]
[426399525,1782348643000,-500.0,0.00013906,2]
[426399523,1782348643000,-500.0,0.00013906,2]
[426399526,1782348643000,-500.0,0.00013906,2]
[426399527,1782348643000,-500.0,0.00013906,2]
[426399541,1782348643000,-500.0,0.00013906,2]
[426399524,1782348643000,-500.0,0.00013906,2]
[426399539,1782348643000,-500.0,0.00013906,2]
[426399535,1782348643000,-500.0,0.00013906,2]
[426399530,1782348643000,-500.0,0.00013906,2]
[426399537,1782348643000,-500.0,0.00013906,2]
[426399534,1782348643000,-500.0,0.00013906,2]
[426399533,1782348643000,-500.0,0.00013906,2]
[426399532,1782348643000,-500.0,0.00013906,2]
[426399531,1782348643000,-500.0,0.00013906,2]
[426399538,1782348643000,-500.0,0.00013906,2]
[426399540,1782348643000,-500.0,0.00013906,2]
[426399536,1782348643000,-500.0,0.00013906,2]
[426399542,1782348643000,-500.0,0.00013906,2]
[426399553,1782348643000,-562.9,0.00013906,2]
[426399529,1782348643000,-500.0,0.00013906,2]
[426399574,1782348643000,-150.0,0.00013977,2]
[426399636,1782348643000,-150.0,0.00014177,2]
[426399572,1782348643000,-150.0,0.00013964,2]
[426399617,1782348643000,-150.0,0.00014115,2]
[426399609,1782348643000,-150.0,0.00014078,2]
[426399611,1782348643000,-150.0,0.00014085,2]
[426399613,1782348643000,-150.0,0.00014089,2]
[426399612,1782348643000,-150.0,0.00014087,2]
[426399616,1782348643000,-150.0,0.00014107,2]
[426399614,1782348643000,-150.0,0.00014099,2]
[426399615,1782348643000,-150.0,0.00014105,2]
[426399619,1782348643000,-150.0,0.00014117,2]
[426399620,1782348643000,-150.0,0.00014124,2]
[426399621,1782348643000,-150.0,0.00014133,2]
[426399629,1782348643000,-150.0,0.0001416,2]
[426399618,1782348643000,-150.0,0.00014116,2]
[426399623,1782348643000,-150.0,0.00014133,2]
[426399627,1782348643000,-150.0,0.00014151,2]
[426399624,1782348643000,-150.0,0.00014142,2]
[426399626,1782348643000,-150.0,0.0001415,2]
[426399622,1782348643000,-150.0,0.00014133,2]
[426399628,1782348643000,-150.0,0.00014159,2]
[426399625,1782348643000,-150.0,0.00014149,2]
[426399630,1782348643000,-500.0,0.00014164,2]
[426399631,1782348643000,-500.0,0.00014164,2]
[426399632,1782348643000,-500.0,0.00014164,2]
[426399637,1782348643000,-150.0,0.00014179,2]
[426399634,1782348643000,-500.0,0.00014164,2]
[426399633,1782348643000,-500.0,0.00014164,2]
[426399570,1782348643000,-150.0,0.00013958,2]
[426399610,1782348643000,-150.0,0.00014082,2]
[426399608,1782348643000,-150.0,0.00014069,2]
[426399635,1782348643000,-150.0,0.00014167,2]
[426399606,1782348643000,-150.0,0.00014065,2]
[426399607,1782348643000,-150.0,0.00014065,2]
[426399579,1782348643000,-520.11,0.00013989,2]
[426399581,1782348643000,-520.29,0.00013989,2]
[426399582,1782348643000,-60000.0,0.0001399,2]
[426399586,1782348643000,-150.0,0.00013998,2]
[426399584,1782348643000,-150.0,0.00013995,2]
[426399589,1782348643000,-150.0,0.00014002,2]
[426399587,1782348643000,-153.136966,0.00014,2]
[426399583,1782348643000,-150.0,0.0001399,2]
[426399591,1782348643000,-150.0,0.00014006,2]
[426399590,1782348643000,-150.0,0.00014005,2]
[426399580,1782348643000,-520.11,0.00013989,2]
[426399585,1782348643000,-150.0,0.00013998,2]
[426399588,1782348643000,-3478.942043,0.00014,2]
[426399573,1782348643000,-150.0,0.0001397,2]
[426399593,1782348643000,-150.0,0.00014015,2]
[426399594,1782348643000,-433.0,0.00014015,2]
[426399598,1782348643000,-562.9,0.00014025,2]
[426399597,1782348643000,-500.0,0.00014025,2]
[426399596,1782348643000,-542.12,0.00014025,2]
[426399603,1782348643000,-150.0,0.0001405,2]
[426399595,1782348643000,-150.0,0.00014022,2]
[426399605,1782348643000,-150.0,0.00014056,2]
[426399602,1782348643000,-150.0,0.00014048,2]
[426399601,1782348643000,-150.0,0.00014042,2]
[426399592,1782348643000,-150.0,0.00014013,2]
[426399604,1782348643000,-150.0,0.00014054,2]
[426399600,1782348643000,-150.0,0.00014032,2]
[426399599,1782348643000,-150.0,0.00014031,2]
[426399681,1782348644000,-150.0,0.00014336,2]
[426399679,1782348644000,-150.0,0.00014332,2]
[426399674,1782348644000,-150.0,0.00014307,2]
[426399677,1782348644000,-156.3,0.00014321,2]
[426399672,1782348644000,-150.0,0.00014302,2]
[426399673,1782348644000,-150.0,0.00014307,2]
[426399671,1782348644000,-2000.0,0.000143,2]
[426399675,1782348644000,-150.0,0.00014312,2]
[426399670,1782348644000,-150.0,0.00014296,2]
[426399683,1782348644000,-150.0,0.00014344,2]
[426399676,1782348644000,-150.0,0.00014319,2]
[426399667,1782348644000,-150.0,0.00014282,2]
[426399691,1782348644000,-150.0,0.00014381,2]
[426399680,1782348644000,-150.0,0.00014336,2]
[426399690,1782348644000,-150.0,0.0001437,2]
[426399685,1782348644000,-150.0,0.00014353,2]
[426399687,1782348644000,-150.0,0.00014364,2]
[426399688,1782348644000,-150.0,0.00014369,2]
[426399684,1782348644000,-150.0,0.00014352,2]
[426399689,1782348644000,-150.0,0.0001437,2]
[426399686,1782348644000,-150.0,0.00014362,2]
[426399693,1782348644000,-150.0,0.00014386,2]
[426399692,1782348644000,-150.0,0.00014381,2]
[426399700,1782348644000,-150.0,0.00014415,2]
[426399696,1782348644000,-150.0,0.00014402,2]
[426399669,1782348644000,-150.0,0.00014289,2]
[426399682,1782348644000,-150.0,0.00014339,2]
[426399678,1782348644000,-150.0,0.00014326,2]
[426399649,1782348644000,-150.0,0.00014217,2]
[426399664,1782348644000,-3419.53276057,0.00014269,2]
[426399638,1782348644000,-150.0,0.0001418,2]
[426399639,1782348644000,-150.0,0.00014184,2]
[426399640,1782348644000,-150.0,0.00014187,2]
[426399642,1782348644000,-150.0,0.00014197,2]
[426399645,1782348644000,-150.0,0.000142,2]
[426399643,1782348644000,-2054.0,0.000142,2]
[426399647,1782348644000,-150.0,0.00014212,2]
[426399652,1782348644000,-150.0,0.00014234,2]
[426399641,1782348644000,-277.00016945,0.00014191,2]
[426399646,1782348644000,-150.0,0.0001421,2]
[426399644,1782348644000,-150.0,0.000142,2]
[426399650,1782348644000,-150.0,0.00014224,2]
[426399668,1782348644000,-150.0,0.00014285,2]
[426399651,1782348644000,-44671.50250463,0.0001423,2]
[426399657,1782348644000,-150.0,0.00014252,2]
[426399695,1782348644000,-150.0,0.00014399,2]
[426399655,1782348644000,-150.0,0.00014244,2]
[426399658,1782348644000,-150.0,0.0001426,2]
[426399665,1782348644000,-150.0,0.00014271,2]
[426399660,1782348644000,-150.0,0.00014264,2]
[426399656,1782348644000,-150.0,0.00014251,2]
[426399663,1782348644000,-505.85568272,0.00014269,2]
[426399659,1782348644000,-150.0,0.00014261,2]
[426399662,1782348644000,-150.0,0.00014268,2]
[426399661,1782348644000,-150.0,0.00014268,2]
[426399666,1782348644000,-150.0,0.00014275,2]
[426399648,1782348644000,-150.0,0.00014216,2]
[426399698,1782348644000,-150.0,0.00014403,2]
[426399653,1782348644000,-150.0,0.00014234,2]
[426399697,1782348644000,-150.0,0.00014403,2]
[426399728,1782348644000,-150.0,0.00014539,2]
[426399730,1782348644000,-150.0,0.0001455,2]
[426399738,1782348644000,-159.27,0.00014573,2]
[426399732,1782348644000,-150.0,0.0001456,2]
[426399736,1782348644000,-150.0,0.00014569,2]
[426399733,1782348644000,-526.25865036,0.00014561,2]
[426399734,1782348644000,-150.0,0.00014564,2]
[426399735,1782348644000,-44671.50250463,0.00014565,2]
[426399737,1782348644000,-150.0,0.00014572,2]
[426399740,1782348644000,-150.0,0.00014583,2]
[426399742,1782348644000,-150.0,0.00014586,2]
[426399741,1782348644000,-3419.53276057,0.00014585,2]
[426399746,1782348644000,-2000.0,0.000146,2]
[426399745,1782348644000,-2000.0,0.000146,2]
[426399744,1782348644000,-150.0,0.00014592,2]
[426399743,1782348644000,-150.0,0.00014589,2]
[426399747,1782348644000,-150.0,0.00014601,2]
[426399750,1782348644000,-150.0,0.00014614,2]
[426399748,1782348644000,-150.0,0.00014606,2]
[426399749,1782348644000,-150.0,0.00014606,2]
[426399752,1782348644000,-150.0,0.0001462,2]
[426399757,1782348644000,-151.0,0.0001463,2]
[426399751,1782348644000,-395.63650625,0.00014619,2]
[426399754,1782348644000,-150.0,0.00014623,2]
[426399753,1782348644000,-150.0,0.0001462,2]
[426399755,1782348644000,-150.0,0.00014623,2]
[426399694,1782348644000,-200.0,0.00014388,2]
[426399731,1782348644000,-150.0,0.00014556,2]
[426399739,1782348644000,-150.0,0.00014579,2]
[426399756,1782348644000,-150.0,0.00014623,2]
[426399723,1782348644000,-150.0,0.00014522,2]
[426399699,1782348644000,-150.0,0.00014405,2]
[426399702,1782348644000,-150.0,0.0001442,2]
[426399701,1782348644000,-150.0,0.00014418,2]
[426399704,1782348644000,-150.0,0.00014436,2]
[426399706,1782348644000,-150.0,0.00014439,2]
[426399703,1782348644000,-150.0,0.00014434,2]
[426399708,1782348644000,-150.0,0.00014454,2]
[426399729,1782348644000,-150.0,0.00014546,2]
[426399709,1782348644000,-150.0,0.00014454,2]
[426399710,1782348644000,-150.0,0.00014465,2]
[426399707,1782348644000,-150.0,0.00014441,2]
[426399711,1782348644000,-150.0,0.00014466,2]
[426399713,1782348644000,-150.0,0.00014471,2]
[426399705,1782348644000,-150.0,0.00014437,2]
[426399714,1782348644000,-150.0,0.00014473,2]
[426399718,1782348644000,-150.0,0.00014497,2]
[426399712,1782348644000,-150.0,0.00014471,2]
[426399726,1782348644000,-150.0,0.00014529,2]
[426399722,1782348644000,-150.0,0.00014518,2]
[426399719,1782348644000,-150.0,0.00014505,2]
[426399725,1782348644000,-150.0,0.00014528,2]
[426399727,1782348644000,-150.0,0.00014539,2]
[426399721,1782348644000,-150.0,0.00014514,2]
[426399724,1782348644000,-150.0,0.00014527,2]
[426399717,1782348644000,-150.0,0.00014491,2]
[426399716,1782348644000,-150.0,0.00014488,2]
[426399715,1782348644000,-150.0,0.00014478,2]
[426399720,1782348644000,-150.0,0.00014509,2]
[426399797,1782348645000,-200.0,0.0001477,2]
[426399810,1782348645000,-448.76706005,0.0001479,2]
[426399790,1782348645000,-150.0,0.00014741,2]
[426399793,1782348645000,-150.0,0.0001475,2]
[426399795,1782348645000,-150.0,0.00014767,2]
[426399789,1782348645000,-150.0,0.00014732,2]
[426399798,1782348645000,-150.0,0.00014774,2]
[426399792,1782348645000,-150.0,0.00014748,2]
[426399796,1782348645000,-150.0,0.00014768,2]
[426399794,1782348645000,-150.0,0.00014758,2]
[426399791,1782348645000,-150.0,0.00014741,2]
[426399800,1782348645000,-150.0,0.00014782,2]
[426399811,1782348645000,-562.9,0.0001479,2]
[426399799,1782348645000,-150.0,0.00014775,2]
[426399802,1782348645000,-459.0,0.00014786,2]
[426399803,1782348645000,-150.0,0.00014789,2]
[426399806,1782348645000,-542.12,0.0001479,2]
[426399807,1782348645000,-542.12,0.0001479,2]
[426399804,1782348645000,-542.12,0.0001479,2]
[426399809,1782348645000,-500.0,0.0001479,2]
[426399808,1782348645000,-542.19576843,0.0001479,2]
[426399805,1782348645000,-542.12,0.0001479,2]
[426399814,1782348645000,-562.9,0.0001479,2]
[426399812,1782348645000,-562.9,0.0001479,2]
[426399788,1782348645000,-150.0,0.0001473,2]
[426399801,1782348645000,-150.0,0.00014785,2]
[426399783,1782348645000,-150.0,0.00014708,2]
[426399766,1782348645000,-2764.008,0.00014664,2]
[426399782,1782348645000,-150.0,0.00014702,2]
[426399821,1782348645000,-150.0,0.00014804,2]
[426399762,1782348645000,-150.0,0.00014655,2]
[426399759,1782348645000,-150.0,0.00014638,2]
[426399761,1782348645000,-182.14,0.00014642,2]
[426399758,1782348645000,-151.0,0.0001463,2]
[426399760,1782348645000,-150.0,0.0001464,2]
[426399765,1782348645000,-150.0,0.00014659,2]
[426399764,1782348645000,-150.0,0.00014657,2]
[426399770,1782348645000,-150.0,0.00014674,2]
[426399773,1782348645000,-490.30899527,0.00014681,2]
[426399772,1782348645000,-500.0,0.00014681,2]
[426399767,1782348645000,-165.345,0.00014664,2]
[426399779,1782348645000,-150.0,0.00014693,2]
[426399771,1782348645000,-150.0,0.00014675,2]
[426399768,1782348645000,-150.0,0.00014672,2]
[426399774,1782348645000,-500.0,0.00014681,2]
[426399775,1782348645000,-500.0,0.00014681,2]
[426399787,1782348645000,-150.0,0.00014725,2]
[426399786,1782348645000,-150.0,0.00014723,2]
[426399785,1782348645000,-150.0,0.00014718,2]
[426399777,1782348645000,-150.0,0.00014687,2]
[426399778,1782348645000,-150.0,0.00014691,2]
[426399776,1782348645000,-500.0,0.00014681,2]
[426399784,1782348645000,-150.0,0.00014711,2]
[426399780,1782348645000,-150.0,0.00014695,2]
[426399781,1782348645000,-1000.0,0.000147,5]
[426399769,1782348645000,-150.0,0.00014674,2]
[426399815,1782348645000,-562.9,0.0001479,2]
[426399763,1782348645000,-150.0,0.00014656,2]
[426399816,1782348645000,-892.02228416,0.00014792,2]
[426399848,1782348645000,-5800.0,0.00014874,2]
[426399850,1782348645000,-150.0,0.00014877,2]
[426399851,1782348645000,-150.00000001,0.00014877,2]
[426399853,1782348645000,-154.55636631,0.00014877,2]
[426399855,1782348645000,-150.00000001,0.00014877,2]
[426399858,1782348645000,-297.89529666,0.00014877,2]
[426399852,1782348645000,-150.0,0.00014877,2]
[426399854,1782348645000,-150.0,0.00014877,2]
[426399856,1782348645000,-150.0,0.00014877,2]
[426399857,1782348645000,-209.17418234,0.00014877,2]
[426399859,1782348645000,-200.0,0.00014879,2]
[426399862,1782348645000,-151.0,0.00014882,2]
[426399849,1782348645000,-150.0,0.00014877,2]
[426399866,1782348645000,-500.0,0.0001489,2]
[426399861,1782348645000,-151.0,0.00014882,2]
[426399867,1782348645000,-500.0,0.0001489,2]
[426399868,1782348645000,-500.0,0.0001489,2]
[426399864,1782348645000,-5800.0,0.00014883,2]
[426399863,1782348645000,-25000.0,0.00014882,3]
[426399869,1782348645000,-500.0,0.0001489,2]
[426399870,1782348645000,-500.0,0.0001489,2]
[426399871,1782348645000,-500.0,0.0001489,2]
[426399873,1782348645000,-500.0,0.0001489,2]
[426399872,1782348645000,-500.0,0.0001489,2]
[426399874,1782348645000,-500.0,0.0001489,2]
[426399817,1782348645000,-150.0,0.00014792,2]
[426399865,1782348645000,-500.0,0.0001489,2]
[426399843,1782348645000,-150.0,0.0001486,2]
[426399860,1782348645000,-151.0,0.00014882,2]
[426399844,1782348645000,-231.58889,0.0001486,2]
[426399823,1782348645000,-150.0,0.00014809,2]
[426399840,1782348645000,-25000.0,0.00014856,3]
[426399820,1782348645000,-150.0,0.00014803,2]
[426399813,1782348645000,-562.9,0.0001479,2]
[426399822,1782348645000,-150.0,0.00014809,2]
[426399818,1782348645000,-2000.0,0.000148,2]
[426399819,1782348645000,-1000.0,0.000148,5]
[426399834,1782348645000,-150.0,0.00014843,2]
[426399835,1782348645000,-150.0,0.00014845,2]
[426399825,1782348645000,-459.0,0.00014818,2]
[426399826,1782348645000,-150.0,0.00014822,2]
[426399827,1782348645000,-585.64,0.00014825,2]
[426399824,1782348645000,-150.0,0.00014813,2]
[426399833,1782348645000,-150.0,0.0001484,2]
[426399847,1782348645000,-25000.0,0.00014874,3]
[426399832,1782348645000,-150.0,0.0001484,2]
[426399831,1782348645000,-25000.0,0.00014838,3]
[426399830,1782348645000,-25000.0,0.0001483,3]
[426399828,1782348645000,-150.0,0.00014825,2]
[426399836,1782348645000,-25000.0,0.00014847,3]
[426399838,1782348645000,-231.58888,0.0001485,2]
[426399837,1782348645000,-5800.0,0.00014849,2]
[426399845,1782348645000,-25000.0,0.00014865,3]
[426399841,1782348645000,-5800.0,0.00014858,2]
[426399842,1782348645000,-150.0,0.00014858,2]
[426399839,1782348645000,-231.58888,0.0001485,2]
[426399829,1782348645000,-150.0,0.00014826,2]
[426399846,1782348645000,-5800.0,0.00014866,2]